bitfinex/quotes_SOLUSD_20220228
["timestamp","ask_amount","ask_price","bid_price","bid_amount"]
[1646026269531,4.612,86.757,86.672,44.91324865]
[1646026269532,17.313,86.74,86.672,44.91324865]
[1646026269733,21.11440537,86.739,86.672,44.91324865]
[1646026269932,1.42249582,86.738,86.672,44.91324865]
[1646026270935,4.613,86.737,86.672,44.91324865]
[1646026271440,17.3142,86.73,86.672,44.91324865]
[1646026271638,1.81834219,86.729,86.63,14.05]
[1646026271838,4.614,86.728,86.621,79.0469]
[1646026272039,1.90531722,86.727,86.622,6.0]
[1646026272239,4.614,86.726,86.617,6.0]
[1646026272640,35.66758513,86.709,86.618,51.82662111]
[1646026272841,1.678703,86.708,86.619,6.0]
[1646026273140,4.615,86.707,86.619,6.0]
[1646026273539,7.36178921,86.707,86.619,6.0]
[1646026274041,4.615,86.707,86.619,6.0]
[1646026274441,17.3209,86.7,86.619,6.0]
[1646026274640,1.88120378,86.699,86.619,6.0]
[1646026275240,4.615,86.725,86.62,146.9675]
[1646026275441,6.21206572,86.747,86.623,2.89649509]
[1646026275640,6.21206572,86.747,86.624,6.0]
[1646026275641,1.59706572,86.747,86.624,6.0]
[1646026275841,4.614,86.746,86.624,6.0]
[1646026276045,35.94680773,86.745,86.625,25.69942885]
[1646026276246,1.87881603,86.744,86.626,9.04085312]
[1646026276441,6.0,86.743,86.65,17.3101]
[1646026276645,6.0,86.743,86.651,6.0]
[1646026278445,17.3125,86.74,86.651,6.0]
[1646026279347,17.3125,86.74,86.66,17.3105]
[1646026279547,35.94680773,86.745,86.651,6.0]
[1646026279548,35.94680773,86.745,86.664,115.6]
[1646026279947,35.94680773,86.745,86.666,115.6]
[1646026280148,6.0,86.744,86.668,115.6]
[1646026280348,6.0,86.744,86.67,115.6]
[1646026280547,6.0,86.744,86.671,6.0]
[1646026283046,2.74678921,86.743,86.671,6.0]
[1646026283248,2.74678921,86.743,86.664,6.0]
[1646026283647,2.74678921,86.743,86.663,51.82662111]
[1646026283849,4.613,86.742,86.664,6.0]
[1646026284047,17.3122,86.74,86.64,31.363]
[1646026284246,6.50910787,86.739,86.64,17.313]
[1646026284449,2.74678921,86.739,86.641,6.0]
[1646026284847,7.36078921,86.738,86.641,6.0]
[1646026285046,7.36078921,86.738,86.642,60.81858556]
[1646026285247,2.74678921,86.737,86.643,6.0]
[1646026285447,17.3166,86.72,86.643,6.0]
[1646026285647,14.66647028,86.719,86.643,6.0]
[1646026285849,16.47890942,86.719,86.643,6.0]
[1646026286048,1.95156702,86.718,86.643,6.0]
[1646026290353,17.3176,86.71,86.642,60.81858556]
[1646026290556,1.66072802,86.709,86.642,60.81858556]
[1646026290753,4.40751723,86.709,86.642,60.81858556]
[1646026291154,2.74678921,86.708,86.642,60.81858556]
[1646026292557,17.3197,86.7,86.642,60.81858556]
[1646026292755,37.89781858,86.699,86.642,60.81858556]
[1646026292955,1.69664735,86.698,86.62,54.4649]
[1646026293256,1.69664735,86.698,86.629,6.0]
[1646026293455,1.69664735,86.698,86.621,6.0]
[1646026294057,1.69664735,86.698,86.622,58.71610003]
[1646026294257,1.69664735,86.698,86.623,6.0]
[1646026294860,17.3212,86.69,86.622,58.71610003]
[1646026295058,17.3212,86.69,86.586,24.7053]
[1646026295059,6.5576971,86.689,86.586,24.7053]
[1646026295259,9.30448631,86.689,86.597,6.0]
[1646026295658,2.74678921,86.688,86.597,6.0]
[1646026295859,4.616,86.687,86.597,6.0]
[1646026296059,35.94680773,86.669,86.598,47.26007682]
[1646026296259,35.94680773,86.669,86.599,6.0]
[1646026296462,1.46611867,86.668,86.599,6.0]
[1646026297261,17.3267,86.66,86.599,6.0]
[1646026297462,1.95251158,86.659,86.599,6.0]
[1646026298466,17.3289,86.65,86.584,112.6]
[1646026298662,6.28161531,86.649,86.571,22.5931]
[1646026298862,1.86904249,86.647,86.532,4.618]
[1646026299062,7.36478921,86.649,86.542,2.74678921]
[1646026299264,4.619,86.665,86.542,2.74678921]
[1646026299463,1.41072843,86.666,86.544,115.6]
[1646026299665,1.41072843,86.666,86.546,115.6]
[1646026299864,17.3289,86.65,86.55,14.05]
[1646026300068,19.28447028,86.649,86.551,6.0]
[1646026300263,1.66114844,86.648,86.551,6.0]
[1646026300463,4.618,86.647,86.551,8.74678921]
[1646026300664,7.36478921,86.647,86.551,8.74678921]
[1646026300862,17.3335,86.63,86.551,8.74678921]
[1646026301065,1.65381566,86.629,86.551,8.74678921]
[1646026301264,1.65381566,86.629,86.552,4.619]
[1646026301471,1.65381566,86.629,86.553,6.0]
[1646026301665,1.65381566,86.629,86.553,8.74678921]
[1646026301866,1.65381566,86.629,86.553,6.0]
[1646026302067,1.65381566,86.629,86.554,2.74678921]
[1646026302265,1.65381566,86.629,86.555,6.0]
[1646026302466,1.65381566,86.629,86.556,52.61698738]
[1646026302674,1.65381566,86.629,86.557,6.0]
[1646026302866,17.3346,86.62,86.557,6.0]
[1646026303068,16.29930598,86.619,86.557,6.0]
[1646026303267,1.49750658,86.618,86.557,6.0]
[1646026304868,14.66647028,86.619,86.557,6.0]
[1646026305169,14.66647028,86.619,86.558,2.74678921]
[1646026305367,14.66647028,86.619,86.559,6.0]
[1646026306468,1.49137076,86.618,86.559,6.0]
[1646026306669,1.49137076,86.618,86.557,6.0]
[1646026307069,1.67846857,86.629,86.56,17.3321]
[1646026307269,17.3327,86.63,86.561,6.0]
[1646026307871,17.3327,86.63,86.561,8.74678921]
[1646026308072,17.3327,86.63,86.562,2.74678921]
[1646026308272,17.3327,86.63,86.563,6.0]
[1646026308671,1.95521488,86.629,86.564,2.74678921]
[1646026308895,1.95521488,86.629,86.565,6.0]
[1646026309473,1.95521488,86.629,86.561,6.0]
[1646026310186,6.7,86.634,86.57,17.3304]
[1646026310373,6.7,86.634,86.571,6.0]
[1646026311175,6.7,86.634,86.572,43.11973461]
[1646026311380,6.7,86.634,86.574,115.6]
[1646026311578,6.7,86.634,86.58,17.3283]
[1646026311777,6.7,86.634,86.581,6.0]
[1646026311977,6.7,86.634,86.581,8.74678921]
[1646026312376,6.7,86.634,86.582,2.74678921]
[1646026312576,6.7,86.634,86.59,17.3252]
[1646026312782,6.7,86.634,86.592,47.3227807]
[1646026314077,41.42621386,86.633,86.592,47.3227807]
[1646026314276,43.10475451,86.633,86.592,47.3227807]
[1646026315479,1.84084901,86.632,86.592,47.3227807]
[1646026318580,17.3288,86.65,86.592,47.3227807]
[1646026318780,1.49619179,86.649,86.592,47.3227807]
[1646026319581,35.65184384,86.648,86.592,47.3227807]
[1646026319781,17.3305,86.64,86.592,47.3227807]
[1646026319980,17.3305,86.64,86.56,24.9723]
[1646026319981,1.51327067,86.639,86.571,23.998]
[1646026320186,10.618,86.638,86.572,6.0]
[1646026320385,1.88970477,86.637,86.561,6.0]
[1646026320581,4.618,86.636,86.561,6.0]
[1646026320785,7.36478921,86.636,86.561,6.0]
[1646026321083,17.3342,86.63,86.562,59.21332715]
[1646026321282,1.83453984,86.629,86.563,6.0]
[1646026322083,1.57482279,86.638,86.564,2.74678921]
[1646026322284,1.57482279,86.638,86.565,6.0]
[1646026322689,1.57482279,86.638,86.57,17.3301]
[1646026322884,17.3284,86.65,86.57,17.3301]
[1646026322885,36.14864341,86.644,86.571,6.0]
[1646026323183,36.14864341,86.644,86.571,8.74678921]
[1646026323683,36.14864341,86.644,86.572,2.74678921]
[1646026323903,36.14864341,86.644,86.573,6.0]
[1646026324288,36.14864341,86.644,86.574,2.74678921]
[1646026324488,17.3284,86.65,86.58,17.3283]
[1646026324690,17.3284,86.65,86.581,6.0]
[1646026325592,47.65625997,86.649,86.581,6.0]
[1646026326394,17.3265,86.66,86.591,115.6]
[1646026326597,4.617,86.689,86.601,115.6]
[1646026326795,6.0,86.688,86.603,115.6]
[1646026327095,6.0,86.688,86.602,6.0]
[1646026327096,1.86481229,86.705,86.605,115.6]
[1646026327298,4.616,86.704,86.611,115.6]
[1646026327495,36.28622607,86.704,86.613,115.6]
[1646026327695,1.60947791,86.703,86.615,115.6]
[1646026327995,1.61065977,86.701,86.617,115.6]
[1646026328197,1.61065977,86.701,86.619,46.47704959]
[1646026328394,6.0,86.7,86.62,6.0]
[1646026328597,15.97925128,86.689,86.62,23.3197]
[1646026328795,1.45872822,86.688,86.62,23.3197]
[1646026330700,17.3224,86.68,86.62,23.3197]
[1646026330898,17.3224,86.68,86.62,17.3197]
[1646026331103,1.80639484,86.679,86.619,46.47704959]
[1646026331300,4.616,86.688,86.619,46.47704959]
[1646026331516,115.6,86.687,86.591,22.7229]
[1646026331716,1.70583407,86.684,86.591,22.7229]
[1646026331915,4.616,86.683,86.591,22.7229]
[1646026332515,17.3248,86.67,86.592,52.58066507]
[1646026332722,36.28622607,86.668,86.592,52.58066507]
[1646026332921,6.54735703,86.667,86.592,52.58066507]
[1646026333723,13.03735703,86.667,86.592,52.58066507]
[1646026334028,7.91116783,86.666,86.592,52.58066507]
[1646026334221,4.617,86.665,86.592,52.58066507]
[1646026334521,17.3287,86.65,86.592,52.58066507]
[1646026334721,15.84662267,86.649,86.592,52.58066507]
[1646026334921,1.61006668,86.648,86.592,52.58066507]
[1646026342224,22.8,86.664,86.592,52.58066507]
[1646026342225,17.3264,86.66,86.592,52.58066507]
[1646026342427,22.8,86.664,86.593,115.6]
[1646026342630,22.8,86.664,86.595,115.6]
[1646026342826,22.8,86.664,86.596,6.0]
[1646026343030,22.8,86.664,86.596,2.74678921]
[1646026343231,22.8,86.664,86.598,115.6]
[1646026343429,22.8,86.664,86.599,6.0]
[1646026343632,22.8,86.664,86.6,17.325]
[1646026343830,22.8,86.664,86.601,6.0]
[1646026344230,1.79773329,86.685,86.602,2.74678921]
[1646026344431,1.79773329,86.685,86.603,6.0]
[1646026344831,1.79773329,86.685,86.604,118.34678921]
[1646026345031,35.95157636,86.684,86.606,115.6]
[1646026345232,1.7196708,86.683,86.607,6.0]
[1646026345631,17.3227,86.68,86.61,17.3231]
[1646026345833,17.3227,86.68,86.611,6.0]
[1646026346333,35.95157636,86.684,86.612,2.74678921]
[1646026346535,35.95157636,86.684,86.614,115.6]
[1646026346732,35.95157636,86.684,86.616,115.6]
[1646026346933,35.95157636,86.684,86.618,115.6]
[1646026347132,35.95157636,86.684,86.619,58.37354055]
[1646026347534,35.95157636,86.684,86.62,17.3212]
[1646026347733,6.0,86.683,86.621,6.0]
[1646026348334,7.73425086,86.683,86.621,6.0]
[1646026349137,17.3225,86.68,86.619,52.37354055]
[1646026349337,6.21626497,86.679,86.619,52.37354055]
[1646026350540,17.3255,86.67,86.619,52.37354055]
[1646026350741,16.25419723,86.669,86.619,52.37354055]
[1646026350941,1.49537202,86.668,86.619,52.37354055]
[1646026351546,1.49537202,86.668,86.6,17.3251]
[1646026351745,1.49537202,86.668,86.593,23.559]
[1646026351746,17.3265,86.66,86.593,23.559]
[1646026351943,1.64631006,86.659,86.593,23.559]
[1646026352545,1.64631006,86.659,86.602,43.24809845]
[1646026353945,14.66170165,86.669,86.602,43.24809845]
[1646026354147,1.81851862,86.668,86.602,43.24809845]
[1646026354747,4.617,86.667,86.602,43.24809845]
[1646026354946,4.617,86.667,86.603,6.0]
[1646026355149,6.0,86.666,86.602,43.24809845]
[1646026355346,4.617,86.665,86.602,43.24809845]
[1646026355548,6.35471456,86.665,86.602,43.24809845]
[1646026355753,14.66170165,86.669,86.602,43.24809845]
[1646026355950,14.66170165,86.669,86.603,8.74678921]
[1646026356952,1.41780598,86.668,86.603,6.0]
[1646026357765,1.41780598,86.668,86.604,6.0]
[1646026358166,4.617,86.68,86.61,17.323]
[1646026358367,6.38578858,86.708,86.611,126.216]
[1646026358565,1.76978858,86.708,86.611,128.96278921]
[1646026358764,1.91182663,86.707,86.611,128.96278921]
[1646026359067,47.63466966,86.688,86.613,115.6]
[1646026359266,47.63466966,86.688,86.617,115.6]
[1646026359466,47.63466966,86.688,86.63,17.3178]
[1646026359664,47.63466966,86.688,86.632,49.43354524]
[1646026359864,47.63466966,86.688,86.633,6.0]
[1646026360864,47.63466966,86.688,86.634,115.6]
[1646026361063,47.63466966,86.688,86.64,17.3173]
[1646026361265,47.63466966,86.688,86.641,6.0]
[1646026361468,47.63466966,86.688,86.635,6.0]
[1646026361864,47.63466966,86.688,86.633,6.0]
[1646026362072,47.63466966,86.688,86.632,49.43354524]
[1646026362866,47.63466966,86.688,86.633,6.0]
[1646026364672,1.61497748,86.687,86.63,31.3698]
[1646026364868,1.61497748,86.687,86.62,17.3216]
[1646026365070,6.0,86.686,86.621,6.0]
[1646026365269,6.0,86.686,86.618,6.0]
[1646026365673,6.0,86.686,86.619,45.37767931]
[1646026365875,6.0,86.686,86.62,6.0]
[1646026366472,17.3227,86.68,86.62,6.0]
[1646026366673,1.83705203,86.679,86.62,6.0]
[1646026368077,47.63466966,86.688,86.62,23.3217]
[1646026370981,24.4373,86.699,86.621,115.6]
[1646026371181,1.88219183,86.717,86.631,115.6]
[1646026371381,10.06648524,86.716,86.65,17.315]
[1646026371583,10.06648524,86.716,86.651,6.0]
[1646026371883,37.13693179,86.715,86.651,6.0]
[1646026372082,37.13693179,86.715,86.652,45.19598801]
[1646026372293,10.06648524,86.714,86.653,6.0]
[1646026372683,37.13693179,86.715,86.653,6.0]
[1646026374584,37.13693179,86.715,86.654,115.6]
[1646026374785,37.13693179,86.715,86.656,115.6]
[1646026374984,37.13693179,86.715,86.658,115.6]
[1646026375185,4.614,86.729,86.66,17.3135]
[1646026375387,1.54450988,86.73,86.661,121.6]
[1646026375591,10.07590457,86.728,86.661,121.6]
[1646026375987,4.613,86.746,86.661,121.6]
[1646026376187,50.32358969,86.744,86.661,121.6]
[1646026376388,1.83784942,86.739,86.661,121.6]
[1646026376592,4.613,86.738,86.661,121.6]
[1646026376789,1.50661271,86.737,86.661,121.6]
[1646026376988,4.613,86.736,86.661,121.6]
[1646026377188,14.68896461,86.736,86.661,121.6]
[1646026377389,23.3783,86.735,86.661,121.6]
[1646026377590,17.314,86.73,86.661,121.6]
[1646026377790,1.74899588,86.729,86.661,121.6]
[1646026377989,11.82496049,86.729,86.661,121.6]
[1646026378192,1.75353665,86.728,86.661,6.0]
[1646026378390,4.613,86.727,86.654,23.1979]
[1646026378590,6.15007866,86.727,86.654,23.1979]
[1646026378792,10.07596461,86.726,86.654,23.1979]
[1646026378990,10.07596461,86.726,86.653,22.7567]
[1646026378991,6.54614493,86.725,86.652,45.19598801]
[1646026379191,16.62210954,86.725,86.652,45.19598801]
[1646026379393,14.68996461,86.725,86.652,45.19598801]
[1646026379592,17.3144,86.72,86.652,45.19598801]
[1646026379792,6.23292139,86.719,86.652,45.19598801]
[1646026379993,16.308886,86.719,86.652,45.19598801]
[1646026380191,1.84134371,86.718,86.652,45.19598801]
[1646026380391,4.614,86.717,86.652,45.19598801]
[1646026380592,1.45133323,86.717,86.652,45.19598801]
[1646026380794,10.07596461,86.716,86.652,45.19598801]
[1646026381092,1.91366437,86.715,86.652,45.19598801]
[1646026381293,1.84413481,86.714,86.652,45.19598801]
[1646026381492,17.3172,86.71,86.652,45.19598801]
[1646026381692,1.94881682,86.709,86.652,45.19598801]
[1646026383095,17.3172,86.71,86.652,45.19598801]
[1646026383995,17.3172,86.71,86.653,6.0]
[1646026384396,17.3146,86.72,86.653,6.0]
[1646026384601,1.70832745,86.728,86.66,17.3133]
[1646026384801,1.69834912,86.734,86.661,6.0]
[1646026385201,16.07126717,86.733,86.661,6.0]
[1646026385401,1.71184588,86.732,86.661,6.0]
[1646026385599,1.71184588,86.732,86.67,17.3107]
[1646026385802,1.71184588,86.732,86.671,56.54073398]
[1646026386399,1.71184588,86.732,86.656,22.9867]
[1646026386603,17.41980435,86.731,86.656,22.9867]
[1646026386804,17.3126,86.73,86.656,22.9867]
[1646026387004,6.43970823,86.729,86.656,22.9867]
[1646026387402,10.06001514,86.728,86.656,22.9867]
[1646026387602,6.07047672,86.727,86.656,22.9867]
[1646026387802,8.81726593,86.727,86.656,22.9867]
[1646026388202,1.6256964,86.725,86.656,22.9867]
[1646026388405,4.614,86.724,86.621,115.6]
[1646026388602,4.614,86.724,86.641,56.23171969]
[1646026388603,1.47176287,86.709,86.641,56.23171969]
[1646026389003,1.47176287,86.709,86.642,6.0]
[1646026389203,2.74678921,86.708,86.642,6.0]
[1646026390406,4.50053084,86.708,86.642,6.0]
[1646026390705,2.74678921,86.707,86.642,6.0]
[1646026392420,1.75374163,86.708,86.65,17.3155]
[1646026392618,1.44332893,86.718,86.651,6.0]
[1646026392818,1.62513185,86.728,86.651,6.0]
[1646026393018,23.5331,86.743,86.652,118.34678921]
[1646026393219,1.60808667,86.742,86.654,115.6]
[1646026393421,1.60808667,86.742,86.656,115.6]
[1646026393619,17.3107,86.74,86.661,115.6]
[1646026393819,17.3107,86.74,86.663,115.6]
[1646026394020,17.3107,86.74,86.665,115.6]
[1646026394223,17.3107,86.74,86.667,115.6]
[1646026394420,10.07223006,86.739,86.669,115.6]
[1646026394620,10.07223006,86.739,86.671,49.84342308]
[1646026394820,10.07223006,86.739,86.672,6.0]
[1646026395519,10.07223006,86.739,86.68,17.3095]
[1646026395719,10.07223006,86.739,86.681,6.0]
[1646026396320,17.3105,86.74,86.681,6.0]
[1646026396520,17.3105,86.74,86.673,22.5233]
[1646026396720,17.54360829,86.739,86.673,22.5233]
[1646026396920,1.75889378,86.738,86.673,22.5233]
[1646026397119,11.83112384,86.738,86.674,6.0]
[1646026397319,1.82653803,86.737,86.674,6.0]
[1646026397521,11.89876809,86.737,86.674,6.0]
[1646026397720,17.3128,86.73,86.674,6.0]
[1646026397921,1.80041335,86.729,86.674,6.0]
[1646026400131,17.3107,86.74,86.674,6.0]
[1646026400432,6.02830536,86.739,86.674,6.0]
[1646026400631,7.93673484,86.738,86.674,6.0]
[1646026400832,1.85237866,86.737,86.674,6.0]
[1646026401033,10.07674495,86.738,86.68,17.3095]
[1646026401231,17.3107,86.74,86.681,6.0]
[1646026401631,10.08188778,86.739,86.681,6.0]
[1646026402232,1.55787894,86.738,86.674,6.0]
[1646026402431,1.55787894,86.738,86.674,5.0794151]
[1646026402933,1.72935446,86.736,86.674,5.0794151]
[1646026403133,10.08188778,86.735,86.674,5.0794151]
[1646026404838,6.0,86.734,86.674,5.0794151]
[1646026405437,6.0,86.733,86.674,5.0794151]
[1646026405637,1.72935446,86.736,86.674,5.0794151]
[1646026406038,10.07627125,86.735,86.674,5.0794151]
[1646026406239,10.07627125,86.735,86.68,17.3094]
[1646026406436,10.07627125,86.739,86.681,6.0]
[1646026407238,1.58167373,86.747,86.681,6.0]
[1646026407438,17.3088,86.75,86.681,6.0]
[1646026407838,1.7930909,86.749,86.68,17.3094]
[1646026408039,10.08273953,86.742,86.68,17.3094]
[1646026409342,10.08273953,86.742,86.681,6.0]
[1646026409542,17.3105,86.74,86.681,6.0]
[1646026410246,10.08273953,86.739,86.681,6.0]
[1646026411347,17.3105,86.74,86.681,6.0]
[1646026412345,1.88510548,86.757,86.691,45.89329891]
[1646026412744,1.88510548,86.757,86.692,6.0]
[1646026413144,1.88510548,86.757,86.693,115.6]
[1646026413345,1.88510548,86.757,86.695,115.6]
[1646026413546,1.88510548,86.757,86.697,115.6]
[1646026413748,1.88510548,86.757,86.698,6.0]
[1646026414146,10.09462782,86.756,86.698,6.0]
[1646026414445,10.09462782,86.756,86.7,17.3053]
[1646026414746,44.27534663,86.755,86.701,6.0]
[1646026414950,10.09462782,86.754,86.701,6.0]
[1646026415147,11.90359181,86.754,86.701,6.0]
[1646026415348,10.09462782,86.753,86.692,6.0]
[1646026417351,10.09462782,86.753,86.691,6.0]
[1646026417749,17.3087,86.75,86.68,17.3087]
[1646026417954,25.74066294,86.749,86.684,6.0]
[1646026418158,1.85946754,86.748,86.661,4.612]
[1646026418356,4.613,86.747,86.657,22.6174]
[1646026418659,10.09462782,86.746,86.657,22.6174]
[1646026418858,6.47594478,86.745,86.657,22.6174]
[1646026419060,19.31736181,86.745,86.657,22.6174]
[1646026419260,1.53402062,86.744,86.657,22.6174]
[1646026419460,17.3105,86.74,86.658,6.0]
[1646026419660,6.12267786,86.739,86.658,6.0]
[1646026419863,10.09462782,86.738,86.658,6.0]
[1646026420063,29.1849,86.737,86.658,6.0]
[1646026420262,1.86097269,86.736,86.658,6.0]
[1646026420462,6.18379053,86.735,86.657,22.6174]
[1646026420662,8.93057974,86.735,86.657,22.6174]
[1646026420963,1.64003363,86.733,86.657,22.6174]
[1646026421265,1.64003363,86.733,86.656,49.0401167]
[1646026421266,8.81996198,86.732,86.651,24.5253]
[1646026421470,115.6,86.729,86.64,17.3166]
[1646026421665,115.6,86.727,86.64,17.3166]
[1646026421864,6.29083388,86.726,86.64,17.3166]
[1646026422063,16.3854617,86.726,86.64,17.3166]
[1646026422263,16.3854617,86.726,86.62,71.7681]
[1646026422264,31.20981133,86.725,86.642,58.90567607]
[1646026422467,6.43925763,86.724,86.642,58.90567607]
[1646026422669,17.318,86.71,86.63,17.3185]
[1646026422869,37.03939176,86.709,86.631,23.1664]
[1646026423070,1.48895484,86.708,86.631,23.1664]
[1646026423269,6.25363615,86.707,86.631,23.1664]
[1646026423670,6.25363615,86.707,86.642,51.51959293]
[1646026424067,10.06146367,86.706,86.642,51.51959293]
[1646026424270,1.87784438,86.705,86.642,51.51959293]
[1646026424473,17.3188,86.7,86.642,51.51959293]
[1646026424672,1.82730072,86.699,86.642,51.51959293]
[1646026424871,42.20626615,86.698,86.642,51.51959293]
[1646026425072,1.94636692,86.697,86.642,51.51959293]
[1646026428089,42.09731882,86.696,86.642,51.51959293]
[1646026428287,1.51196778,86.695,86.642,51.51959293]
[1646026428888,42.09731882,86.696,86.642,51.51959293]
[1646026428889,17.3208,86.69,86.642,51.51959293]
[1646026429095,1.82778029,86.689,86.642,51.51959293]
[1646026429398,6.0,86.688,86.642,51.51959293]
[1646026429594,4.615,86.693,86.642,51.51959293]
[1646026429795,7.69258681,86.692,86.642,51.51959293]
[1646026429994,17.3237,86.68,86.642,51.51959293]
[1646026430200,1.67133317,86.679,86.617,22.9736]
[1646026430795,17.3237,86.68,86.618,24.6947]
[1646026430999,1.90586052,86.679,86.618,24.6947]
[1646026431196,1.90586052,86.679,86.642,48.35199441]
[1646026431397,28.9866,86.695,86.642,48.35199441]
[1646026431597,24.3716,86.695,86.642,48.35199441]
[1646026431998,4.615,86.719,86.642,48.35199441]
[1646026431999,4.615,86.719,86.643,118.34678921]
[1646026432197,24.0863,86.719,86.644,29.7827]
[1646026432397,6.50778275,86.718,86.644,29.7827]
[1646026432599,16.57485957,86.718,86.644,29.7827]
[1646026432798,40.96085199,86.717,86.644,29.7827]
[1646026432998,17.3166,86.71,86.644,29.7827]
[1646026433199,1.68867917,86.708,86.644,29.7827]
[1646026433399,4.614,86.707,86.62,2.74678921]
[1646026433599,4.614,86.707,86.6,14.05]
[1646026433898,10.06707682,86.706,86.6,14.05]
[1646026434098,6.25029451,86.705,86.601,24.4696]
[1646026434300,6.25029451,86.705,86.635,50.30394682]
[1646026434301,14.68207682,86.705,86.635,50.30394682]
[1646026434500,17.3196,86.7,86.635,50.30394682]
[1646026434697,6.29536135,86.699,86.635,50.30394682]
[1646026434998,10.06707682,86.698,86.635,50.30394682]
[1646026435299,6.42106512,86.697,86.635,50.30394682]
[1646026435500,14.68207682,86.697,86.635,50.30394682]
[1646026435700,1.58990707,86.696,86.635,50.30394682]
[1646026435900,4.615,86.695,86.635,50.30394682]
[1646026436100,6.21094613,86.695,86.635,50.30394682]
[1646026436305,10.06707682,86.694,86.635,50.30394682]
[1646026436501,11.55968464,86.689,86.635,50.30394682]
[1646026436902,1.94358339,86.688,86.635,50.30394682]
[1646026437705,1.94358339,86.688,86.618,23.2761]
[1646026437905,17.3225,86.68,86.568,17.6646]
[1646026438106,46.6799,86.679,86.583,52.7939]
[1646026438306,1.66768148,86.678,86.583,52.7939]
[1646026438505,4.617,86.677,86.583,52.7939]
[1646026438805,1.6036738,86.676,86.584,50.11119769]
[1646026439005,6.12663121,86.675,86.585,6.0]
[1646026439504,17.3276,86.66,86.59,17.3262]
[1646026439707,39.05359337,86.659,86.591,6.0]
[1646026439909,1.56139909,86.658,86.591,6.0]
[1646026440506,4.617,86.675,86.6,17.3242]
[1646026440507,17.3247,86.67,86.6,17.3242]
[1646026440708,17.3247,86.67,86.601,29.0408]
[1646026441509,1.42308912,86.699,86.61,17.3221]
[1646026441712,4.616,86.714,86.611,138.6408]
[1646026442014,1.81269393,86.712,86.613,115.6]
[1646026442212,1.81269393,86.712,86.615,115.6]
[1646026442213,4.615,86.711,86.615,115.6]
[1646026442412,1.81269393,86.712,86.617,115.6]
[1646026442613,44.37807772,86.711,86.631,115.6]
[1646026442812,17.3164,86.71,86.64,17.3155]
[1646026443011,1.70123454,86.709,86.641,6.0]
[1646026444034,17.3164,86.71,86.642,115.6]
[1646026444234,44.37807772,86.711,86.646,115.6]
[1646026444434,44.37807772,86.711,86.647,121.6]
[1646026444834,23.7319,86.719,86.651,115.6]
[1646026445036,6.0,86.718,86.653,115.6]
[1646026445235,6.0,86.718,86.655,115.6]
[1646026445435,6.0,86.718,86.657,115.6]
[1646026445635,6.0,86.718,86.658,6.0]
[1646026445836,49.39515925,86.717,86.658,6.0]
[1646026446435,49.39515925,86.717,86.66,17.312]
[1646026446636,49.39515925,86.717,86.65,14.05]
[1646026446837,49.39515925,86.717,86.648,2.74678921]
[1646026447248,1.88314909,86.716,86.63,14.05]
[1646026447436,4.614,86.715,86.62,14.05]
[1646026447638,8.87499339,86.715,86.62,14.05]
[1646026447835,10.0515376,86.714,86.62,14.05]
[1646026448036,1.95036854,86.713,86.62,14.05]
[1646026448238,1.95036854,86.713,86.645,48.62850863]
[1646026448436,17.3168,86.71,86.645,48.62850863]
[1646026448636,6.0,86.709,86.645,48.62850863]
[1646026448836,16.0515376,86.709,86.645,48.62850863]
[1646026449035,1.51685814,86.708,86.645,48.62850863]
[1646026449236,10.0515376,86.708,86.645,48.62850863]
[1646026449436,1.73449738,86.707,86.645,48.62850863]
[1646026450036,8.74678921,86.709,86.645,48.62850863]
[1646026450535,17.3189,86.7,86.645,48.62850863]
[1646026450739,1.61363766,86.699,86.645,48.62850863]